bitfinex/quotes_ETHUSD_20230111
["timestamp","ask_amount","ask_price","bid_price","bid_amount"]
[1673406804715,4.55679394,1332.2,1332.0,5.753359]
[1673406805050,4.49079394,1332.2,1332.0,3.89066064]
[1673406805202,1.12331827,1332.1,1332.0,3.79766064]
[1673406805563,4.55679394,1332.2,1332.0,5.66035153]
[1673406805784,8.25028648,1332.2,1332.0,3.89066064]
[1673406806094,8.25028648,1332.2,1332.0,3.79766064]
[1673406806718,1.12345549,1332.1,1332.0,4.92231901]
[1673406807034,1.12345549,1332.1,1332.0,6.78500987]
[1673406807035,1.12348191,1332.1,1332.0,6.78500987]
[1673406807247,4.55679394,1332.2,1332.0,6.87800987]
[1673406807464,1.1235236,1332.1,1332.0,5.01531901]
[1673406807618,1.12353204,1332.1,1332.0,6.87801026]
[1673406807825,1.12351903,1332.1,1332.0,6.87801026]
[1673406808052,1.12352039,1332.1,1332.0,6.87801026]
[1673406808278,2.24707447,1332.1,1332.0,6.87801026]
[1673406808506,1.12352039,1332.1,1332.0,6.87801026]
[1673406808723,2.24707859,1332.1,1332.0,5.75335189]
[1673406809456,2.24707859,1332.1,1332.0,6.87801026]
[1673406814793,2.24707859,1332.1,1332.0,5.75082363]
[1673406814794,12.68871875,1332.1,1332.0,5.75082363]
[1673406815002,20.19565875,1332.1,1332.0,3.88813238]
[1673406815218,12.68871875,1332.1,1332.0,5.65794895]
[1673406815400,12.68871875,1332.1,1332.0,5.75094895]
[1673406815757,13.81190193,1332.1,1332.0,5.48272328]
[1673406816170,6.30496193,1332.1,1332.0,5.48272328]
[1673406816336,13.81190193,1332.1,1332.0,3.61990671]
[1673406816546,13.81190193,1332.1,1332.0,3.52690671]
[1673406816547,12.68871875,1332.1,1332.0,3.52690671]
[1673406816836,32.41482347,1332.1,1331.9,1.21765837]
[1673406817131,9.77609583,1332.0,1331.8,1.21765837]
[1673406817291,23.64734644,1331.9,1331.8,3.79766064]
[1673406817496,23.64734644,1331.9,1331.8,5.66067594]
[1673406817744,22.52421,1331.9,1331.8,5.75367594]
[1673406818147,22.50421884,1331.9,1331.8,5.75367594]
[1673406818970,23.62735528,1331.9,1331.8,5.75367594]
[1673406819181,28.83487693,1331.9,1331.8,0.093]
[1673406819412,29.95715173,1331.9,1331.6,1.12465837]
[1673406819601,1.689,1331.8,1331.6,6.7854911]
[1673406819964,1.689,1331.8,1331.6,5.01531901]
[1673406820176,9.19768,1331.8,1331.6,5.01531901]
[1673406820346,1.689,1331.8,1331.6,5.01531901]
[1673406820977,1.689,1331.8,1331.7,1.86313701]
[1673406821421,1.689,1331.8,1331.6,5.01531901]
[1673406821756,19.8568865,1331.9,1331.6,12.52504901]
[1673406821915,13.95638698,1331.9,1331.7,1.86310765]
[1673406822443,13.95638698,1331.9,1331.7,9.37225765]
[1673406822663,13.95638698,1331.9,1331.7,7.60215]
[1673406823288,13.95638698,1331.9,1331.7,0.093]
[1673406823533,13.95638698,1331.9,1331.6,22.82912483]
[1673406823745,13.95638698,1331.9,1331.7,1.8630435]
[1673406825223,11.0036,1331.9,1331.8,3.79766064]
[1673406825429,9.3076,1331.9,1331.8,3.79766064]
[1673406826009,7.57378,1332.0,1331.8,3.79766064]
[1673406826218,7.50778,1332.0,1331.8,3.79766064]
[1673406826746,40.21355316,1332.1,1331.8,3.79766064]
[1673406826959,40.14755316,1332.1,1331.8,3.79766064]
[1673406828530,47.65480316,1332.1,1331.8,3.79766064]
[1673406828739,32.64028316,1332.1,1331.8,3.79766064]
[1673406829369,40.14753316,1332.1,1331.8,3.79766064]
[1673406830849,47.65478316,1332.1,1331.8,3.79766064]
[1673406831069,40.14753316,1332.1,1331.8,3.79766064]
[1673406831946,25.13303316,1332.1,1331.9,3.79766064]
[1673406832123,23.45116205,1332.1,1331.9,3.79766064]
[1673406833529,23.45116205,1332.1,1331.9,3.79404582]
[1673406834584,23.45116205,1332.1,1331.9,3.790431]
[1673406834585,22.7707748,1332.1,1331.9,3.790431]
[1673406834747,22.7707748,1332.1,1331.9,11.298291]
[1673406834969,21.6485,1332.1,1331.9,13.391291]
[1673406835739,21.6485,1332.1,1331.9,13.38767616]
[1673406835946,21.6485,1332.1,1331.9,11.38767616]
[1673406836312,21.6485,1332.1,1331.9,3.87981616]
[1673406836550,21.6485,1332.1,1331.9,11.29485616]
[1673406836781,21.6485,1332.1,1331.9,3.87981616]
[1673406837021,21.6485,1332.1,1331.9,3.78681616]
[1673406837579,29.15545,1332.1,1331.9,3.78681616]
[1673406838360,29.15545,1332.1,1331.9,13.56802058]
[1673406838614,29.15545,1332.1,1331.9,13.66102058]
[1673406838886,30.2777248,1332.1,1331.9,13.66102058]
[1673406839048,29.15545,1332.1,1331.9,13.66102058]
[1673406839680,21.6485,1332.1,1331.9,13.66102058]
[1673406839926,21.6485,1332.1,1331.9,3.87981616]
[1673406840094,21.6485,1332.1,1331.9,3.78681616]
[1673406840669,21.6485,1332.1,1331.9,3.7832032]
[1673406841297,29.15546,1332.1,1331.9,3.7832032]
[1673406841459,29.15546,1332.1,1331.9,3.77959022]
[1673406842728,29.15546,1332.1,1331.9,3.77597538]
[1673406842952,21.6485,1332.1,1331.9,3.77597538]
[1673406843559,21.6505,1332.1,1331.9,3.77236056]
[1673406843773,21.6485,1332.1,1331.9,3.77236056]
[1673406843984,29.15566,1332.1,1331.9,3.77236056]
[1673406844627,29.15566,1332.1,1331.9,3.76874577]
[1673406845261,21.6485,1332.1,1331.9,3.76874577]
[1673406845474,21.6485,1332.1,1331.9,3.76513098]
[1673406846722,21.6485,1332.1,1331.9,3.76151619]
[1673406846934,22.7707748,1332.1,1331.9,3.76151619]
[1673406848575,22.7707748,1332.1,1331.9,3.75790142]
[1673406849719,22.7707748,1332.1,1331.9,3.75428662]
[1673406850675,22.7707748,1332.1,1331.9,3.75067182]
[1673406851690,22.7707748,1332.1,1331.9,3.74705697]
[1673406852623,22.7707748,1332.1,1331.9,3.74344212]
[1673406852832,20.53084205,1332.1,1331.9,3.74344212]
[1673406853359,20.53084205,1332.1,1331.9,11.25130212]
[1673406853671,20.53084205,1332.1,1331.9,11.34068727]
[1673406853992,21.65311685,1332.1,1331.9,11.34068727]
[1673406854413,21.65311685,1332.1,1331.9,3.83282727]
[1673406854623,21.65311685,1332.1,1331.9,3.73982727]
[1673406857849,21.65311685,1332.1,1331.9,3.73621249]
[1673406858667,21.65311685,1332.1,1331.9,3.73259771]
[1673406859601,21.65311685,1332.1,1331.9,3.72898291]
[1673406861485,21.65311685,1332.1,1331.9,3.72536813]
[1673406862169,23.33498796,1332.1,1331.9,3.72536813]
[1673406862331,21.65311685,1332.1,1331.9,11.23328813]
[1673406862544,21.65311685,1332.1,1331.9,11.32267335]
[1673406862746,18.54401857,1332.1,1332.0,1.86268058]
[1673406862956,18.54401857,1332.1,1332.0,24.38518058]
[1673406863216,18.54401857,1332.1,1332.0,24.47818058]
[1673406863388,9.77781857,1332.1,1332.0,3.08033895]
[1673406863603,9.77781857,1332.1,1332.0,2.98372442]
[1673406864010,1.687,1332.1,1332.0,2.98372442]
[1673406864445,1.687,1332.1,1332.0,1.85906605]
[1673406864665,1.687,1332.1,1332.0,1.85543819]
[1673406865474,1.687,1332.1,1332.0,1.85182368]
[1673406866144,9.19394,1332.1,1332.0,1.85182368]
[1673406866340,16.70088,1332.1,1332.0,1.85182368]
[1673406866547,16.70088,1332.1,1332.0,1.84820917]
[1673406869181,17.8231548,1332.1,1332.0,1.84820917]
[1673406869372,17.8231548,1332.1,1332.0,5.64586981]
[1673406869373,10.3162148,1332.1,1332.0,5.64586981]
[1673406869578,10.3162148,1332.1,1332.0,5.73886981]
[1673406871949,8.6292148,1332.1,1332.0,5.73886981]
[1673406872311,16.1361548,1332.1,1332.0,3.89066064]
[1673406872600,16.1361548,1332.1,1332.0,3.79766064]
[1673406872737,16.1361548,1332.1,1332.0,3.79400886]
[1673406873691,16.1361548,1332.1,1332.0,3.79035708]
[1673406874667,25.32496591,1332.1,1332.0,3.78670531]
[1673406874880,17.81802591,1332.1,1332.0,3.78670531]
[1673406875406,20.80460086,1332.1,1332.0,3.78670531]
[1673406875618,20.80460086,1332.1,1332.0,3.78305353]
[1673406876534,20.80460086,1332.1,1332.0,3.77940175]
[1673406877683,20.80460086,1332.1,1332.0,3.77574997]
[1673406878337,28.31154086,1332.1,1332.0,3.77574997]
[1673406878531,20.80460086,1332.1,1332.0,3.77574997]
[1673406878747,20.80460086,1332.1,1332.0,3.77209819]
[1673406879666,20.80460086,1332.1,1332.0,3.76844641]
[1673406880769,20.80460086,1332.1,1332.0,3.76479463]
[1673406881560,20.80460086,1332.1,1332.0,3.76114285]
[1673406881773,22.50060086,1332.1,1332.0,3.76114285]
[1673406882663,22.50060086,1332.1,1332.0,3.75749107]
[1673406883350,21.37832606,1332.1,1332.0,3.75749107]
[1673406883561,31.11138969,1332.1,1332.0,3.75749107]
[1673406883876,31.11138969,1332.1,1332.0,3.7538393]
[1673406884735,31.11138969,1332.1,1332.0,3.75018753]
[1673406885649,31.11138969,1332.1,1332.0,3.74653576]
[1673406886509,31.11138969,1332.1,1332.0,3.74288399]
[1673406887460,23.60444969,1332.1,1332.0,3.74288399]
[1673406887670,23.60444969,1332.1,1332.0,3.73923223]
[1673406888093,21.37832606,1332.1,1332.0,3.73923223]
[1673406888597,21.37832606,1332.1,1332.0,3.73558047]
[1673406888598,22.50087449,1332.1,1332.0,3.73558047]
[1673406889549,22.50087449,1332.1,1332.0,3.73192871]
[1673406889757,30.00781449,1332.1,1332.0,3.73192871]
[1673406890300,22.50087449,1332.1,1332.0,3.73192871]
[1673406890492,22.50087449,1332.1,1332.0,3.72827695]
[1673406891333,30.00781449,1332.1,1332.0,3.72827695]
[1673406891559,30.00781449,1332.1,1332.0,3.72462519]
[1673406892037,30.0077589,1332.1,1332.0,3.72462519]
[1673406892196,28.88526606,1332.1,1332.0,3.72462519]
[1673406892408,21.37832606,1332.1,1332.0,3.72462519]
[1673406892651,21.37832606,1332.1,1332.0,3.72097343]
[1673406892858,28.88526606,1332.1,1332.0,3.72097343]
[1673406893075,21.37832606,1332.1,1332.0,3.72097343]
[1673406893393,22.50079194,1332.1,1332.0,3.72097343]
[1673406893561,22.50079194,1332.1,1332.0,3.71732167]
[1673406894606,30.00773194,1332.1,1332.0,3.71367142]
[1673406895816,30.00773194,1332.1,1332.0,3.71002117]
[1673406896556,30.00773194,1332.1,1332.0,3.70637061]
[1673406897495,28.88526606,1332.1,1332.0,3.70637061]
[1673406897653,28.88526606,1332.1,1331.9,0.093]
[1673406897868,12.81417459,1332.2,1332.0,5.66040036]
[1673406898078,11.99709107,1332.2,1332.1,1.11761619]
[1673406898334,25.88772111,1332.2,1332.1,1.11761619]
[1673406898561,27.01013279,1332.2,1332.1,1.11396393]
[1673406899460,31.96974788,1332.2,1332.1,1.11396393]
[1673406899676,31.96974788,1332.2,1332.1,1.11031195]
[1673406900716,31.96974788,1332.2,1332.1,1.10665997]
[1673406901584,31.96974788,1332.2,1332.1,1.10300799]
[1673406901800,31.40609816,1332.2,1332.1,1.10300799]
[1673406902116,30.28374788,1332.2,1332.1,1.10300799]
[1673406902346,32.50987151,1332.2,1332.1,1.10300799]
[1673406902703,32.50987151,1332.2,1332.1,1.09935601]
[1673406902912,30.8280004,1332.2,1332.1,1.09935601]
[1673406903761,30.8280004,1332.2,1332.1,1.09569076]
[1673406904648,30.8280004,1332.2,1332.1,1.09202472]
[1673406905653,30.8280004,1332.2,1332.1,1.08837272]
[1673406906721,30.8280004,1332.2,1332.1,1.08472073]
[1673406907331,32.51204447,1332.2,1332.1,1.08472073]
[1673406907653,32.51204447,1332.2,1332.1,1.08106874]
[1673406908222,22.77913084,1332.2,1332.1,1.08106874]
[1673406908418,30.28581084,1332.2,1332.1,1.08106874]
[1673406908811,31.40858995,1332.2,1332.1,1.07741675]
[1673406909752,31.40858995,1332.2,1332.1,1.07376476]
[1673406910084,25.32656318,1332.2,1332.1,1.07376476]
[1673406910503,25.32656318,1332.2,1332.1,4.8714254]
[1673406910730,26.40663494,1332.3,1332.1,7.85500475]
[1673406910731,0.17272113,1332.3,1332.1,7.85500475]
[1673406910923,0.10672113,1332.3,1332.2,7.6466599]
[1673406911116,0.10672113,1332.3,1332.2,7.7396599]
[1673406912621,0.10672113,1332.3,1332.2,7.73600819]
[1673406913585,0.10672113,1332.3,1332.2,7.73235648]
[1673406913804,0.10672113,1332.3,1332.2,15.23873648]
[1673406914478,0.10672113,1332.3,1332.2,7.73235648]
[1673406915055,0.10672113,1332.3,1332.2,5.86992675]
[1673406916759,0.10672113,1332.3,1332.2,5.86627505]
[1673406917449,0.10672113,1332.3,1332.2,27.36241122]
[1673406917685,1.18768332,1332.3,1332.2,30.24771182]
[1673406917899,1.18768332,1332.3,1332.2,33.04202764]
[1673406919812,1.18768332,1332.3,1332.2,5.86627505]
[1673406919959,1.18768332,1332.3,1332.2,2.06861441]
[1673406920175,1.18768332,1332.3,1332.2,1.97561441]
[1673406920432,8.69349332,1332.3,1332.2,1.97561441]
[1673406920610,8.69349332,1332.3,1332.2,1.97196271]
[1673406920817,32.47306782,1332.3,1332.2,1.97196271]
[1673406921024,36.975891,1332.3,1332.2,1.97196271]
[1673406921238,38.07923552,1332.3,1332.2,1.97196271]
[1673406921491,38.30923552,1332.3,1332.2,1.97196271]
[1673406921744,38.87243552,1332.3,1332.2,1.96831101]
[1673406921854,42.62351904,1332.3,1332.2,1.96831101]
[1673406922625,42.62351904,1332.3,1332.2,1.96464525]
[1673406923008,2.5,1332.2,1331.9,0.093]
[1673406923344,1.696,1332.0,1331.7,26.80960523]
[1673406923580,1.696,1332.0,1331.8,5.66051549]
[1673406923762,1.696,1332.0,1331.8,3.89066064]
[1673406923971,1.696,1332.0,1331.8,3.79766064]
[1673406925343,9.20353,1332.0,1331.8,3.79766064]
[1673406925799,1.696,1332.0,1331.8,3.79766064]
[1673406926754,1.696,1331.9,1331.7,0.093]
[1673406926900,1.686,1331.8,1331.7,3.79766064]
[1673406928580,1.686,1331.8,1331.7,3.79400763]
[1673406928944,9.19463,1331.8,1331.7,3.79400763]
[1673406929334,1.686,1331.8,1331.7,3.79400763]
[1673406929541,1.686,1331.8,1331.7,3.79035462]
[1673406930415,3.36286,1331.8,1331.7,3.79035462]
[1673406930637,18.38012,1331.8,1331.7,3.78670161]
[1673406930794,25.88875,1331.8,1331.7,3.78670161]
[1673406931622,25.88875,1331.8,1331.6,0.093]
[1673406931839,25.88875,1331.8,1331.6,3.79766064]
[1673406932627,18.38012,1331.8,1331.6,3.79400736]
[1673406932783,25.88875,1331.8,1331.6,3.79400736]
[1673406932995,18.38012,1331.8,1331.6,3.79400736]
[1673406933204,10.87149,1331.8,1331.6,3.79400736]
[1673406933684,10.87149,1331.8,1331.6,3.79035408]
[1673406933844,9.19463,1331.8,1331.6,3.79035408]
[1673406934689,9.19463,1331.8,1331.6,3.7867008]
[1673406934911,16.70328,1331.8,1331.5,6.00843119]
[1673406935096,16.70328,1331.8,1331.5,7.01154859]
[1673406935584,24.21193,1331.8,1331.5,7.01154859]
[1673406935776,27.390541,1331.8,1331.5,7.01154859]
[1673406936619,19.883891,1331.8,1331.5,7.00854859]
[1673406936793,19.881891,1331.8,1331.5,7.01154859]
[1673406937344,24.57814002,1331.8,1331.5,7.01154859]
[1673406937549,19.881891,1331.8,1331.5,7.01154859]
[1673406938190,3.74669157,1331.8,1331.5,22.03171859]
[1673406938509,3.06808057,1331.8,1331.5,22.03171859]
[1673406938688,10.57672057,1331.8,1331.5,14.52146859]
[1673406939098,10.57672057,1331.8,1331.5,7.01154859]
[1673406939652,10.57672057,1331.8,1331.5,4.01154859]
[1673406939864,10.57672057,1331.8,1331.5,3.91854859]
[1673406940275,14.19639463,1331.8,1331.5,3.91854859]
[1673406943456,10.57672057,1331.8,1331.5,3.91854859]
[1673406945865,18.08536057,1331.8,1331.5,3.91854859]
[1673406947389,30.27797825,1331.8,1331.5,3.91854859]
[1673406948071,2.5,1331.6,1331.5,3.91854859]
[1673406948396,1.42942588,1331.6,1331.5,0.12088795]
[1673406948865,0.917,1331.6,1331.5,0.12088795]
[1673406949936,2.917,1331.6,1331.5,0.12088795]
[1673406950146,5.637728,1331.6,1331.5,0.12088795]
[1673406950338,3.637728,1331.6,1331.5,0.12088795]
[1673406950559,0.917,1331.6,1331.5,0.12088795]
[1673406951120,1.762,1331.7,1331.5,0.12088795]
[1673406951335,1.696,1331.7,1331.5,0.12088795]
[1673406953812,9.20527,1331.7,1331.5,0.12088795]
[1673406953962,16.71454,1331.7,1331.5,0.12088795]
[1673406954330,20.43441906,1331.7,1331.5,0.12088795]
[1673406955167,12.92514906,1331.7,1331.5,0.12088795]
[1673406955588,12.92506906,1331.7,1331.5,0.12088795]
[1673406957584,20.43425906,1331.7,1331.5,0.12088795]
[1673406957958,17.60551144,1331.7,1331.5,0.12088795]
[1673406958159,4.187,1331.6,1331.5,0.12088795]
[1673406960301,5.36135291,1331.6,1331.5,0.12088795]
[1673406960531,5.36335291,1331.6,1331.5,0.12088795]
[1673406960757,5.36135291,1331.6,1331.5,1.98423779]
[1673406961074,5.36135291,1331.6,1331.5,0.12088795]
[1673406961812,5.36135291,1331.6,1331.5,1.98424468]
[1673406961984,1.687,1331.6,1331.5,1.98424468]
[1673406962338,1.687,1331.6,1331.5,0.12088795]
[1673406962724,1.689,1331.6,1331.5,0.12088795]
[1673406962954,1.687,1331.6,1331.5,1.98424753]
[1673406964280,1.687,1331.6,1331.5,0.12088795]
[1673406964931,1.687,1331.6,1331.5,1.98424596]
[1673406966330,19.95949,1331.7,1331.5,1.98424596]
[1673406966645,19.95949,1331.7,1331.5,0.12088795]
[1673406966646,19.89349,1331.7,1331.5,0.12088795]
[1673406967039,21.01299304,1331.7,1331.5,0.12088795]
[1673406967389,24.41513514,1331.7,1331.5,0.12088795]
[1673406968391,31.92442514,1331.7,1331.5,0.12088795]
[1673406970844,24.41513514,1331.7,1331.5,0.12088795]
[1673406971853,31.92442514,1331.7,1331.5,0.12088795]
[1673406972097,39.43371514,1331.7,1331.5,0.12088795]
[1673406972509,44.11415752,1331.7,1331.5,0.12088795]
[1673406972900,39.43371514,1331.7,1331.5,0.12088795]
[1673406973111,44.11415752,1331.7,1331.5,0.12088795]
[1673406973739,39.43371514,1331.7,1331.5,0.12088795]
[1673406974175,31.92442514,1331.7,1331.5,0.12088795]
[1673406975335,36.60486752,1331.7,1331.5,0.12088795]
[1673406975887,31.92442514,1331.7,1331.5,0.12088795]
[1673406976206,36.60486752,1331.7,1331.5,0.12088795]
[1673406976581,4.196,1331.6,1331.5,0.12088795]
[1673406976969,11.70576,1331.6,1331.5,1.98428006]
[1673406977990,4.196,1331.6,1331.5,1.98428006]
[1673406978229,10.58771074,1331.6,1331.5,0.12088795]
[1673406979205,14.84432874,1331.6,1331.5,0.12088795]
[1673406979866,22.35408874,1331.6,1331.5,0.12088795]
[1673406980830,20.972138,1331.6,1331.5,1.98432013]
[1673406981046,13.462378,1331.6,1331.5,1.98432013]
[1673406982252,13.462378,1331.6,1331.5,0.12088795]
[1673406982505,13.462378,1331.6,1331.5,1.98432156]
[1673406982727,20.972138,1331.6,1331.5,1.98432156]
[1673406982922,13.462378,1331.6,1331.5,1.98432156]
[1673406983247,9.20576,1331.6,1331.5,1.98432156]
[1673406985213,16.71552,1331.6,1331.5,1.98432156]
[1673406985401,32.5130342,1331.6,1331.5,0.12088795]
[1673406985608,30.0130342,1331.6,1331.5,0.12088795]
[1673406986900,25.34478304,1331.6,1331.5,0.12088795]
[1673406987122,29.74225232,1331.6,1331.5,1.9843671]
[1673406987294,29.74225232,1331.6,1331.5,0.12088795]
[1673406987758,29.74225232,1331.6,1331.5,1.98436319]
[1673406989294,31.43825232,1331.6,1331.5,0.12088795]
[1673406989586,31.66825232,1331.6,1331.5,0.12088795]
[1673406989732,36.33650348,1331.6,1331.5,0.12088795]
[1673406989947,31.66825232,1331.6,1331.5,0.12088795]
[1673406990162,30.51078755,1331.6,1331.5,0.12088795]
[1673406990344,25.84253639,1331.6,1331.5,0.12088795]
[1673406990554,30.51078755,1331.6,1331.5,0.12088795]
[1673406990873,31.66825232,1331.6,1331.5,0.12088795]
[1673406991337,24.15849232,1331.6,1331.5,0.12088795]
[1673406991656,24.15849232,1331.6,1331.5,0.11722546]
[1673406992238,16.64873232,1331.6,1331.5,0.11722546]
[1673406992711,16.64873232,1331.6,1331.5,0.11356297]
[1673406992867,24.15849232,1331.6,1331.5,0.11356297]
[1673406993077,16.64873232,1331.6,1331.5,0.11356297]
[1673406993397,31.66825232,1331.6,1331.5,0.11356297]
[1673406993624,31.66825232,1331.6,1331.5,0.10990048]
[1673406993815,24.15849232,1331.6,1331.5,0.10990048]
[1673406994249,24.15849232,1331.6,1331.5,1.97337241]
[1673406994493,24.15849232,1331.6,1331.5,0.10990048]
[1673406994708,24.15849232,1331.6,1331.5,1.96971384]
[1673406994863,24.15849232,1331.6,1331.5,0.10623799]
[1673406995296,24.15849232,1331.6,1331.5,1.96970859]
[1673406995716,31.66825232,1331.6,1331.5,0.1025755]
[1673406996160,31.66825232,1331.6,1331.5,1.96605081]
[1673406996494,29.97225232,1331.6,1331.5,1.96605081]
[1673406996799,22.46249232,1331.6,1331.5,1.96239683]
[1673406997743,22.46249232,1331.6,1331.5,0.09525052]
[1673406997961,29.97225232,1331.6,1331.5,0.09525052]
[1673406998126,30.72333584,1331.6,1331.5,1.95873031]
[1673406998783,23.21357584,1331.6,1331.5,1.95506782]
[1673406999010,23.21357584,1331.6,1331.5,1.95506852]
[1673406999702,23.21357584,1331.6,1331.5,1.95140603]
[1673407000805,23.21357584,1331.6,1331.5,1.94774354]
[1673407001216,30.72333584,1331.6,1331.5,1.94774354]
[1673407001823,30.72333584,1331.6,1331.5,1.94408105]
[1673407002453,30.72333584,1331.6,1331.5,0.08060056]
[1673407002803,30.72333584,1331.6,1331.5,0.07693807]
[1673407003701,30.72333584,1331.6,1331.5,0.07327809]
[1673407003904,32.40737991,1331.6,1331.5,0.07327809]
[1673407004115,30.72333584,1331.6,1331.5,0.07327809]
[1673407004369,23.21357584,1331.6,1331.5,1.93676749]
[1673407004577,23.21357584,1331.6,1331.5,0.07327809]
[1673407004797,30.72333584,1331.6,1331.5,0.06962642]
[1673407004970,30.72333584,1331.6,1331.5,1.93311418]
[1673407005490,23.21357584,1331.6,1331.5,1.93311418]
[1673407005702,23.21357584,1331.6,1331.5,1.92945523]
[1673407006063,1.11950304,1331.6,1331.5,2.82040527]
[1673407006238,16.40378617,1331.7,1331.6,1.11950303]
[1673407006239,12.43710304,1331.7,1331.6,1.11950303]
[1673407006433,9.19223304,1331.7,1331.6,2.98293356]
[1673407006639,9.19223304,1331.7,1331.6,2.97919329]
[1673407006854,18.38560711,1331.7,1331.6,1.11585135]
[1673407007070,29.77330959,1331.7,1331.6,1.11585135]
[1673407007741,22.26397959,1331.7,1331.6,1.11218591]
[1673407008335,14.75464959,1331.7,1331.6,1.11218591]
[1673407008670,14.75464959,1331.7,1331.6,1.10853452]
[1673407008671,18.38560711,1331.7,1331.6,1.10853452]
[1673407008867,16.70156304,1331.7,1331.6,1.10853452]
[1673407009213,18.38560711,1331.7,1331.6,1.10853452]
[1673407009449,16.70156304,1331.7,1331.6,2.97188136]
[1673407009735,9.19223304,1331.7,1331.6,2.96822997]
[1673407010754,9.19223304,1331.7,1331.6,2.96457437]
[1673407011372,1.67,1331.8,1331.6,14.57451608]
[1673407011579,1.604,1331.8,1331.7,6.78293466]
[1673407011793,1.604,1331.8,1331.7,23.58119352]
[1673407012366,1.604,1331.8,1331.7,29.40350466]
[1673407012740,1.604,1331.8,1331.7,29.39984876]
[1673407013195,1.604,1331.8,1331.7,32.77272762]
[1673407013405,1.604,1331.8,1331.7,40.15213054]
[1673407013616,1.604,1331.8,1331.7,35.56774592]
[1673407014333,1.604,1331.8,1331.7,33.88086706]
[1673407015239,1.604,1331.8,1331.7,38.46726569]
[1673407015540,1.604,1331.8,1331.7,33.88086706]
[1673407015717,1.604,1331.8,1331.7,33.87721085]
[1673407016903,1.604,1331.8,1331.7,32.76259578]
[1673407018261,0.48624609,1331.8,1331.7,32.76259578]
[1673407025407,29.926,1332.1,1331.8,3.41656467]
[1673407025566,0.066,1332.2,1331.9,29.88121748]
[1673407025779,1.65888332,1332.3,1332.0,3.79766064]
[1673407026124,1.65888332,1332.3,1332.1,11.30460064]
[1673407026312,1.65888332,1332.3,1332.1,11.39760064]
[1673407026517,1.65888332,1332.3,1332.1,18.90454064]
[1673407026728,1.65888332,1332.3,1332.1,18.90088495]
[1673407027817,1.65888332,1332.3,1332.1,18.89722954]
[1673407028012,1.65888332,1332.3,1332.1,11.39028954]
[1673407028732,1.65888332,1332.3,1332.1,11.38663414]
[1673407029787,1.65888332,1332.3,1332.1,11.38297874]
[1673407030241,1.09568332,1332.3,1332.1,11.38297874]
[1673407030625,1.09568332,1332.3,1332.1,11.37932337]
[1673407030836,3.59568332,1332.3,1332.1,11.37932337]
[1673407031053,1.09568332,1332.3,1332.1,11.37932337]
[1673407031743,1.09568332,1332.3,1332.1,11.375668]
[1673407032624,1.09568332,1332.3,1332.1,11.37201263]
[1673407033193,1.09568332,1332.3,1332.2,3.79766064]
[1673407033366,9.80870145,1332.4,1332.2,3.79766064]
[1673407033367,9.24560145,1332.4,1332.2,3.79766064]
[1673407033576,9.17960145,1332.4,1332.2,26.31680064]
[1673407033909,9.17960145,1332.4,1332.2,26.40614527]
[1673407034728,9.17960145,1332.4,1332.2,18.89611018]
[1673407035385,9.17960145,1332.4,1332.2,11.38973018]
[1673407035787,9.17960145,1332.4,1332.2,11.38607509]
[1673407036751,9.17960145,1332.4,1332.2,11.38242]
[1673407037768,9.17960145,1332.4,1332.3,3.79766064]
[1673407037975,9.17960145,1332.4,1332.3,11.30347064]
[1673407038270,9.17960145,1332.4,1332.3,3.89066064]
[1673407038420,9.17960145,1332.4,1332.3,3.79766064]
[1673407038762,0.05630145,1332.4,1332.3,11.29981582]
[1673407038980,0.05630145,1332.4,1332.3,11.39281582]
[1673407039167,0.05630145,1332.4,1332.3,3.88700582]
[1673407039378,0.05630145,1332.4,1332.3,3.79400582]
[1673407039589,0.05630145,1332.4,1332.3,11.29981582]
[1673407039762,0.05630145,1332.4,1332.3,11.389161]
[1673407039987,0.97330145,1332.4,1332.3,0.093]
[1673407040232,0.97330145,1332.4,1332.0,25.78089]
[1673407040233,12.14867148,1332.4,1332.0,25.78089]
[1673407040460,18.41691892,1332.4,1332.1,3.79766064]
[1673407040661,13.79152148,1332.4,1332.2,3.79766064]
[1673407041261,13.79152148,1332.4,1332.1,0.093]
[1673407041530,13.79152148,1332.4,1332.1,11.30445064]
[1673407041531,18.41691892,1332.4,1332.1,11.30445064]
[1673407041664,13.79152148,1332.4,1332.1,11.39745064]
[1673407042061,16.29152148,1332.4,1332.1,11.39745064]
[1673407042257,13.79152148,1332.4,1332.1,11.39745064]
[1673407042549,6.31239744,1332.3,1332.1,3.89066064]
[1673407042720,24.08499799,1332.3,1332.1,3.79400525]
[1673407042918,24.08499799,1332.3,1332.0,0.093]
[1673407042919,7.12539744,1332.2,1332.0,0.093]
[1673407043131,4.62539744,1332.1,1331.8,0.91656467]
[1673407043477,29.1730407,1332.1,1331.8,0.91656467]
[1673407043865,1.696,1331.9,1331.8,0.91656467]
[1673407044072,28.84560744,1331.9,1331.8,0.91656467]
[1673407044320,31.32990744,1331.9,1331.8,0.91656467]
[1673407044541,32.08099096,1331.9,1331.8,0.91656467]
[1673407044745,35.87334036,1331.9,1331.8,0.91656467]
[1673407045930,35.87334036,1331.9,1331.8,0.91290846]
[1673407046632,35.87334036,1331.9,1331.8,0.90925225]
[1673407046822,31.24794292,1331.9,1331.8,0.90925225]
[1673407047672,31.24794292,1331.9,1331.8,0.90559604]
[1673407048618,31.24794292,1331.9,1331.8,0.90193983]
[1673407049770,31.24794292,1331.9,1331.8,0.89828362]
[1673407050216,23.73987292,1331.9,1331.8,0.89828362]
[1673407050652,23.73987292,1331.9,1331.8,0.89462741]
[1673407051774,23.73987292,1331.9,1331.8,0.8909712]
[1673407052214,23.17657292,1331.9,1331.8,0.8909712]
[1673407052778,23.17657292,1331.9,1331.8,0.88731499]
[1673407053807,30.68464292,1331.9,1331.8,0.88365878]
[1673407054200,28.2375594,1331.9,1331.8,0.88365878]
[1673407054422,20.7294894,1331.9,1331.8,0.88365878]
[1673407054626,28.2375594,1331.9,1331.8,0.88365878]
[1673407054837,20.7294894,1331.9,1331.8,0.88000257]
[1673407055799,20.7294894,1331.9,1331.8,0.87634636]
[1673407056711,13.2214194,1331.9,1331.8,0.87269011]
[1673407056968,15.7214194,1331.9,1331.8,0.87269011]
[1673407057801,13.2214194,1331.9,1331.8,0.86903386]
[1673407058017,12.9914194,1331.9,1331.8,0.86903386]
[1673407058485,20.4994894,1331.9,1331.8,0.86903386]
[1673407058682,28.0075594,1331.9,1331.8,0.86903386]
[1673407058898,16.70714,1331.9,1331.8,0.86537761]
[1673407059345,24.21521,1331.9,1331.8,0.86537761]
[1673407059755,23.87621,1331.9,1331.8,0.86172136]
[1673407060301,16.36814,1331.9,1331.8,0.86172136]
[1673407060520,19.88148866,1331.9,1331.8,0.86172136]
[1673407060725,19.88148866,1331.9,1331.8,0.85806512]
[1673407061632,19.88148866,1331.9,1331.8,0.85440888]